[Event "Groningen Festival 2019-A"]
[Site "Groningen"]
[Date "2019.12.22"]
[Round "2.9"]
[White "Vrolijk, Liam"]
[Black "Hilverda, Alexander"]
[Result "1-0"]
[ECO "E05"]
[WhiteElo "2467"]
[BlackElo "2294"]
[Annotator "ChessBase"]
[PlyCount "59"]
[EventDate "2019.12.15"]
[EventType "swiss"]
[EventCountry "NED"]
[SourceTitle "playchess.com"]
[Source "ChessBase"]
[SourceQuality "1"]
[TimeControl "40/5400+30:1800+30"]

1. d4 {[%emt 0:04:26]} d5 {[%emt 0:00:05]} 2. c4 {[%emt 0:00:10]} e6 {[%emt 0:00:04]} 3. Nf3 {[%emt 0:00:41]} Nf6 {[%emt 0:00:05]} 4. g3 {[%emt 0:00:14]} Be7 {[%emt 0:01:42]} 5. Bg2 {[%emt 0:00:09]} O-O {[%emt 0:00:06]} 6. Nc3 {[%emt 0:00:06]} dxc4 {[%emt 0:03:32]} 7. Ne5 {[%emt 0:01:35]} c5 {[%emt 0:01:59]} 8. dxc5 {[%emt 0:00:11]} Bxc5 {[%emt 0:01:33]} 9. O-O {[%emt 0:05:06]} Nbd7 {[%emt 0:03:10]} 10. Nxc4 {[%emt 0:01:51]} Nb6 {[%emt 0:00:40]} 11. Be3 {[%emt 0:07:05]} Bxe3 {[%emt 0:00:29]} 12. Nxe3 {[%emt 0:00:09]} Rb8 {[%emt 0:01:10]} 13. Qb3 {[%emt 0:06:57]} Bd7 {[%emt 0:03:14]} 14. Qa3 {[%emt 0:04:48]} Nc8 {[%emt 0:03:16]} 15. Rfd1 {[%emt 0:04:47]} Qe7 {[%emt 0:01:27]} 16. Qa5 {[%emt 0:02:27]} Bc6 {[%emt 0:03:37]} 17. Qe5 {[%emt 0:02:06]} Nb6 {[%emt 0:02:11]} 18. Nf5 {[%emt 0:09:20]} Qb4 {[%emt 0:00:22]} 19. a3 {[%emt 0:05:17]} Qxb2 {[%emt 0:05:25]} 20. Ra2 {[%emt 0:12:27]} Qb3 {[%emt 0:04:10]} 21. Rb1 {[%emt 0:03:00]} Qc4 {[%emt 0:00:40]} 22. Rb4 {[%emt 0:05:24]} Nbd7 {[%emt 0:11:10]} 23. Ne7+ {[%emt 0:04:09]} Kh8 {[%emt 0:00:17]} 24. Qxb8 {[%emt 0:01:20]} Qxc3 {[%emt 0:00:26]} 25. Qd6 {[%emt 0:01:19]} Bxg2 {[%emt 0:20:30]} 26. Kxg2 {[%emt 0:00:03]} Re8 {[%emt 0:00:18]} 27. Rxb7 {[%emt 0:04:30]} Rxe7 {[%emt 0:02:08]} 28. Rc7 {[%emt 0:00:24]} Qb3 {[%emt 0:01:41]} 29. Qxe7 {[%emt 0:00:39]} Qxa2 {[%emt 0:01:11]} 30. Qxd7 {[%emt 0:01:36]} 1-0

[Event "Groningen Festival 2019-A"]
[Site "Groningen"]
[Date "2019.12.22"]
[Round "2.10"]
[White "Zhou, Guijue"]
[Black "Ulybin, Mikhail"]
[Result "0-1"]
[ECO "C11"]
[WhiteElo "2238"]
[BlackElo "2453"]
[Annotator "ChessBase"]
[PlyCount "84"]
[EventDate "2019.12.15"]
[EventType "swiss"]
[EventCountry "NED"]
[SourceTitle "playchess.com"]
[Source "ChessBase"]
[SourceQuality "1"]
[TimeControl "40/5400+30:1800+30"]

1. e4 {[%emt 0:00:00]} e6 {[%emt 0:02:48]} 2. d4 {[%emt 0:00:00]} d5 {[%emt 0:01:04]} 3. Nc3 {[%emt 0:00:00]} Nf6 {[%emt 0:02:34]} 4. e5 {[%emt 0:00:00]} Nfd7 {[%emt 0:01:01]} 5. Nce2 {[%emt 0:00:05]} c5 {[%emt 0:02:22]} 6. c3 {[%emt 0:00:15]} cxd4 {[%emt 0:03:54]} 7. cxd4 {[%emt 0:00:14]} f6 {[%emt 0:01:29]} 8. f4 {[%emt 0:06:27]} fxe5 {[%emt 0:01:47]} 9. fxe5 {[%emt 0:06:35]} Qh4+ {[%emt 0:02:08]} 10. Ng3 {[%emt 0:00:40]} Bb4+ {[%emt 0:01:10]} 11. Kf2 {[%emt 0:01:51]} O-O+ {[%emt 0:02:32]} 12. Nf3 {[%emt 0:00:13]} Nc6 {[%emt 0:01:16]} 13. Be3 {[%emt 0:01:51]} Ba5 {[%emt 0:05:41]} 14. Bb5 {[%emt 0:07:40]} Bb6 {[%emt 0:17:28]} 15. Bxc6 {[%emt 0:03:12]} bxc6 {[%emt 0:00:21]} 16. b4 {[%emt 0:02:34]} a5 {[%emt 0:11:31]} 17. a3 {[%emt 0:03:14]} axb4 {[%emt 0:02:54]} 18. axb4 {[%emt 0:00:16]} Ba6 {[%emt 0:06:29]} 19. Qd2 {[%emt 0:02:37]} h6 {[%emt 0:11:30]} 20. Kg1 {[%emt 0:09:43]} Qg4 {[%emt 0:02:34]} 21. Qf2 {[%emt 0:06:26]} Bc4 {[%emt 0:04:43]} 22. Rxa8 {[%emt 0:00:23]} Rxa8 {[%emt 0:00:09]} 23. h3 {[%emt 0:00:25]} Qg6 {[%emt 0:00:50]} 24. Kh2 {[%emt 0:02:24]} Ra2 {[%emt 0:01:09]} 25. Qe1 {[%emt 0:00:46]} Bd8 {[%emt 0:08:50]} 26. Rg1 {[%emt 0:00:22]} Be7 {[%emt 0:01:16]} 27. Bd2 {[%emt 0:02:59]} Bd3 {[%emt 0:02:47]} 28. Qc1 {[%emt 0:03:28]} Rc2 {[%emt 0:00:28]} 29. Qd1 {[%emt 0:00:24]} Nb6 {[%emt 0:00:51]} 30. Ne1 {[%emt 0:01:52]} Bh4 {[%emt 0:00:46]} 31. Bf4 {[%emt 0:00:38]} Rc3 {[%emt 0:00:35]} 32. Ne2 {[%emt 0:03:23]} Bxe2 {[%emt 0:00:26]} 33. Qxe2 {[%emt 0:00:19]} Nc4 {[%emt 0:00:22]} 34. Nf3 {[%emt 0:08:47]} Be7 {[%emt 0:00:19]} 35. Ra1 {[%emt 0:02:00]} Rc2 {[%emt 0:00:26]} 36. Qf1 {[%emt 0:00:05]} Qe4 {[%emt 0:00:47]} 37. Ra8+ {[%emt 0:07:24]} Kh7 {[%emt 0:00:08]} 38. Bxh6 {[%emt 0:00:17]} Kxh6 {[%emt 0:00:38]} 39. Rh8+ {[%emt 0:00:46]} Kg6 {[%emt 0:00:09]} 40. h4 {[%emt 0:00:08]} Qf4+ {[%emt 0:00:46]} 41. Kh1 {[%emt 0:30:14]} Rc1 {[%emt 0:30:37]} 42. h5+ {[%emt 0:01:22]} Kf7 {[%emt 0:00:29]} 0-1

[Event "Groningen Festival 2019-A"]
[Site "Groningen"]
[Date "2019.12.23"]
[Round "3.8"]
[White "Tiviakov, Sergei"]
[Black "Maris, Ivo"]
[Result "1-0"]
[ECO "B15"]
[WhiteElo "2615"]
[BlackElo "2413"]
[Annotator "RC"]
[PlyCount "81"]
[EventDate "2019.12.15"]
[EventType "swiss"]
[EventCountry "NED"]
[SourceTitle "playchess.com"]
[Source "ChessBase"]
[SourceQuality "1"]
[TimeControl "40/5400+30:1800+30"]

1. e4 {[%emt 0:00:00]} c6 {[%emt 0:00:00]} 2. Nc3 {[%emt 0:00:01]} d5 {[%emt 0:00:00]} 3. Nf3 {[%emt 0:00:05]} dxe4 {[%emt 0:00:17]} 4. Nxe4 {[%emt 0:00:07]} Nf6 {[%emt 0:00:12]} 5. Nxf6+ {[%emt 0:04:24]} exf6 {[%emt 0:00:06]} 6. d4 {[%emt 0:00:03]} Bd6 {[%emt 0:00:17]} 7. Be2 {[%emt 0:00:20]} O-O {[%emt 0:00:22]} 8. O-O {[%emt 0:00:04]} Re8 {[%emt 0:01:19]} 9. Re1 {[%emt 0:01:53]} Nd7 {[%emt 0:02:42]} 10. c4 {[%emt 0:02:15]} Nf8 {[%emt 0:02:05]} 11. Be3 {[%emt 0:05:40]} Ng6 {[%emt 0:02:33]} 12. Qc2 {[%emt 0:02:05]} Nf4 {[%emt 0:03:37]} 13. Bf1 {[%emt 0:12:15]} Bg4 {[%emt 0:10:43]} 14. Nd2 {[%emt 0:00:55]} Qd7 {[%emt 0:05:43]} 15. f3 {[%emt 0:32:41]} Bf5 {[%emt 0:02:16]} 16. Qc3 {[%emt 0:00:11]} h5 {[%emt 0:06:48]} 17. Bf2 {[%emt 0:02:15]} Bc7 {[%emt 0:04:34]} 18. Ne4 {[%emt 0:06:00]} Rad8 {[%emt 0:06:28]} 19. b4 {[%emt 0:06:08]} Bb8 {[%emt 0:01:30]} 20. Nc5 {[%emt 0:12:00]} Qc7 {[%emt 0:01:11]} 21. g3 {[%emt 0:00:05]} Nh3+ {[%emt 0:07:07]} 22. Bxh3 {[%emt 0:00:05]} Bxh3 {[%emt 0:00:04]} 23. Rxe8+ {[%emt 0:00:06]} Rxe8 {[%emt 0:00:02]} 24. Re1 {[%emt 0:00:05]} Qc8 {[%emt 0:01:16]} 25. Rxe8+ {[%emt 0:02:14]} Qxe8 {[%emt 0:00:23]} 26. Be3 {[%emt 0:01:42]} f5 {[%emt 0:06:21]} 27. Kf2 {[%emt 0:01:19]} f4 {[%emt 0:01:26]} 28. Bxf4 {[%emt 0:01:38]} Bxf4 {[%emt 0:00:06]} 29. gxf4 {[%emt 0:00:02]} Qe7 {[%emt 0:00:12]} 30. d5 {[%emt 0:04:26]} Qh4+ {[%emt 0:09:36]} 31. Ke3 {[%emt 0:00:05]} g5 {[%emt 0:00:08]} 32. Nd3 {[%emt 0:02:24]} gxf4+ {[%emt 0:08:04]} 33. Nxf4 {[%emt 0:00:04]} Qg5 {[%emt 0:00:01]} 34. Qd2 {[%emt 0:00:35]} Qg1+ {[%emt 0:00:12]} 35. Ke4 {[%emt 0:00:45]} Qg5 {[%emt 0:03:03]} 36. d6 {[%emt 0:01:39]} f6 {[%emt 0:00:01]} 37. Kd3 {[%emt 0:00:37]} Bf1+ {[%emt 0:01:45]} 38. Kc3 {[%emt 0:00:35]} Qe5+ {[%emt 0:00:07]} 39. Kb3 {[%emt 0:00:19]} b5 {[%emt 0:04:39]} 40. d7 {[%emt 0:00:05]} bxc4+ {[%emt 0:00:41]} 41. Ka3 {[%emt 0:30:08]} 1-0

[Event "Groningen Festival 2019-A"]
[Site "Groningen"]
[Date "2019.12.26"]
[Round "5.1"]
[White "Lubbe, Nikolas"]
[Black "Ernst, Sipke"]
[Result "1/2-1/2"]
[ECO "D46"]
[WhiteElo "2451"]
[BlackElo "2541"]
[Annotator "ChessBase"]
[PlyCount "97"]
[EventDate "2019.12.15"]
[EventType "swiss"]
[EventCountry "NED"]
[SourceTitle "playchess.com"]
[Source "ChessBase"]
[SourceQuality "1"]
[TimeControl "40/5400+30:1800+30"]

1. Nf3 {[%emt 0:00:00]} d5 {[%emt 0:00:00]} 2. d4 {[%emt 0:00:00]} Nf6 {[%emt 0:00:00]} 3. c4 {[%emt 0:00:00]} c6 {[%emt 0:00:25]} 4. Nc3 {[%emt 0:00:10]} e6 {[%emt 0:00:07]} 5. e3 {[%emt 0:00:24]} Nbd7 {[%emt 0:00:04]} 6. Qc2 {[%emt 0:00:16]} Bd6 {[%emt 0:00:05]} 7. Bd3 {[%emt 0:00:22]} O-O {[%emt 0:00:06]} 8. O-O {[%emt 0:00:23]} dxc4 {[%emt 0:00:03]} 9. Bxc4 {[%emt 0:00:08]} b5 {[%emt 0:00:02]} 10. Bd3 {[%emt 0:00:36]} Bb7 {[%emt 0:00:10]} 11. a3 {[%emt 0:02:14]} h6 {[%emt 0:00:38]} 12. e4 {[%emt 0:12:05]} e5 {[%emt 0:00:17]} 13. dxe5 {[%emt 0:04:30]} Nxe5 {[%emt 0:00:11]} 14. Nxe5 {[%emt 0:00:07]} Bxe5 {[%emt 0:00:07]} 15. h3 {[%emt 0:00:18]} Qe7 {[%emt 0:01:03]} 16. Be3 {[%emt 0:06:40]} c5 {[%emt 0:00:10]} 17. Bxb5 {[%emt 0:10:03]} Nxe4 {[%emt 0:07:53]} 18. Nxe4 {[%emt 0:14:04]} Bxe4 {[%emt 0:01:39]} 19. Qe2 {[%emt 0:01:44]} Rab8 {[%emt 0:06:36]} 20. Rac1 {[%emt 0:05:00]} Rfc8 {[%emt 0:10:10]} 21. Rfd1 {[%emt 0:07:24]} Bd6 {[%emt 0:20:50]} 22. Rd2 {[%emt 0:10:59]} Qe5 {[%emt 0:07:50]} 23. f4 {[%emt 0:01:41]} Qe7 {[%emt 0:07:27]} 24. Rcd1 {[%emt 0:01:13]} Rd8 {[%emt 0:12:49]} 25. Bc4 {[%emt 0:00:09]} Ba8 {[%emt 0:02:51]} 26. Bf2 {[%emt 0:03:32]} Qxe2 {[%emt 0:07:20]} 27. Bxe2 {[%emt 0:00:08]} Re8 {[%emt 0:00:43]} 28. Rxd6 {[%emt 0:03:11]} Rxe2 {[%emt 0:00:04]} 29. Rd8+ {[%emt 0:00:03]} Re8 {[%emt 0:00:05]} 30. Rxb8 {[%emt 0:00:06]} Rxb8 {[%emt 0:00:04]} 31. Bxc5 {[%emt 0:00:04]} a5 {[%emt 0:00:52]} 32. b4 {[%emt 0:01:57]} axb4 {[%emt 0:00:04]} 33. axb4 {[%emt 0:00:06]} Bc6 {[%emt 0:01:52]} 34. Rd6 {[%emt 0:01:19]} Bb5 {[%emt 0:02:28]} 35. g4 {[%emt 0:01:00]} Ra8 {[%emt 0:01:22]} 36. Rd2 {[%emt 0:04:56]} Ra3 {[%emt 0:02:13]} 37. Kg2 {[%emt 0:00:24]} Rb3 {[%emt 0:01:16]} 38. f5 {[%emt 0:01:31]} Bd3 {[%emt 0:00:08]} 39. Rf2 {[%emt 0:01:14]} f6 {[%emt 0:06:19]} 40. Kh2 {[%emt 0:00:40]} Kh7 {[%emt 0:02:00]} 41. Rf3 {[%emt 0:32:22]} Rb2+ {[%emt 0:31:15]} 42. Kg3 {[%emt 0:02:34]} Bb5 {[%emt 0:00:00]} 43. Rc3 {[%emt 0:00:00]} Rd2 {[%emt 0:00:00]} 44. Kf4 {[%emt 0:00:00]} Rd3 {[%emt 0:00:00]} 45. Rxd3 {[%emt 0:00:00]} Bxd3 {[%emt 0:00:00]} 46. Ke3 {[%emt 0:00:00]} Bf1 {[%emt 0:00:00]} 47. h4 {[%emt 0:00:00]} Kg8 {[%emt 0:00:00]} 48. Ke4 {[%emt 0:00:00]} Be2 {[%emt 0:00:00]} 49. Kf4 {[%emt 0:00:00]} 1/2-1/2

[Event "Groningen Festival 2019-A"]
[Site "Groningen"]
[Date "2019.12.26"]
[Round "5.2"]
[White "Zwirs, Nico"]
[Black "Krasenkow, Michal"]
[Result "0-1"]
[ECO "B06"]
[WhiteElo "2422"]
[BlackElo "2611"]
[Annotator "ChessBase"]
[PlyCount "126"]
[EventDate "2019.12.15"]
[EventType "swiss"]
[EventCountry "NED"]
[SourceTitle "playchess.com"]
[Source "ChessBase"]
[SourceQuality "1"]
[TimeControl "40/5400+30:1800+30"]

1. e4 {[%emt 0:00:00]} g6 {[%emt 0:00:00]} 2. d4 {[%emt 0:00:00]} Bg7 {[%emt 0:00:00]} 3. Nc3 {[%emt 0:00:00]} d6 {[%emt 0:00:00]} 4. Be3 {[%emt 0:00:19]} a6 {[%emt 0:00:00]} 5. g4 {[%emt 0:00:22]} b5 {[%emt 0:00:00]} 6. Bg2 {[%emt 0:00:11]} Bb7 {[%emt 0:00:00]} 7. h4 {[%emt 0:00:29]} Nd7 {[%emt 0:08:37]} 8. g5 {[%emt 0:01:22]} c5 {[%emt 0:02:20]} 9. h5 {[%emt 0:02:41]} Qc7 {[%emt 0:07:53]} 10. Nge2 {[%emt 0:07:48]} cxd4 {[%emt 0:10:37]} 11. Nxd4 {[%emt 0:02:52]} Nb6 {[%emt 0:01:38]} 12. h6 {[%emt 0:16:20]} Be5 {[%emt 0:01:07]} 13. Qd3 {[%emt 0:13:58]} Nc4 {[%emt 0:06:56]} 14. O-O-O {[%emt 0:00:57]} Bxd4 {[%emt 0:11:14]} 15. Bxd4 {[%emt 0:11:05]} e5 {[%emt 0:00:09]} 16. Be3 {[%emt 0:08:37]} Ne7 {[%emt 0:02:24]} 17. b3 {[%emt 0:01:22]} Nxe3 {[%emt 0:01:42]} 18. fxe3 {[%emt 0:00:19]} Rc8 {[%emt 0:05:30]} 19. Kb2 {[%emt 0:01:10]} Qc5 {[%emt 0:17:35]} 20. Rhf1 {[%emt 0:03:58]} O-O {[%emt 0:04:32]} 21. Rf6 {[%emt 0:02:58]} Rfd8 {[%emt 0:02:09]} 22. Rdf1 {[%emt 0:01:39]} d5 {[%emt 0:05:10]} 23. Rxf7 {[%emt 0:18:20]} dxe4 {[%emt 0:00:12]} 24. Nxe4 {[%emt 0:00:14]} Bxe4 {[%emt 0:01:20]} 25. Qxe4 {[%emt 0:00:10]} Rd2 {[%emt 0:05:59]} 26. Rg7+ {[%emt 0:04:27]} Kh8 {[%emt 0:00:01]} 27. Rc1 {[%emt 0:00:15]} Nf5 {[%emt 0:00:43]} 28. Bh3 {[%emt 0:00:09]} Nd6 {[%emt 0:03:52]} 29. Qh1 {[%emt 0:01:53]} Rxc2+ {[%emt 0:00:02]} 30. Kb1 {[%emt 0:00:01]} Qc3 {[%emt 0:00:06]} 31. Rxc2 {[%emt 0:00:05]} Qxc2+ {[%emt 0:00:02]} 32. Ka1 {[%emt 0:00:02]} Rf8 {[%emt 0:00:22]} 33. Rd7 {[%emt 0:01:08]} Ne4 {[%emt 0:01:49]} 34. Qb1 {[%emt 0:00:46]} Qxb1+ {[%emt 0:01:05]} 35. Kxb1 {[%emt 0:00:00]} Nxg5 {[%emt 0:00:10]} 36. Bg2 {[%emt 0:00:23]} Nf7 {[%emt 0:00:34]} 37. Ra7 {[%emt 0:00:21]} Nxh6 {[%emt 0:00:15]} 38. Rxa6 {[%emt 0:00:05]} Ng4 {[%emt 0:00:57]} 39. Bc6 {[%emt 0:00:31]} b4 {[%emt 0:00:31]} 40. Rb6 {[%emt 0:00:41]} Rf1+ {[%emt 0:01:00]} 41. Kb2 {[%emt 0:31:46]} Rf2+ {[%emt 0:30:11]} 42. Kb1 {[%emt 0:00:04]} Rf6 {[%emt 0:00:00]} 43. Rb8+ {[%emt 0:00:00]} Kg7 {[%emt 0:00:00]} 44. Bd7 {[%emt 0:00:00]} Nxe3 {[%emt 0:00:00]} 45. Rxb4 {[%emt 0:00:00]} Rf1+ {[%emt 0:00:00]} 46. Kb2 {[%emt 0:00:00]} Rf2+ {[%emt 0:00:00]} 47. Kb1 {[%emt 0:00:00]} Nd5 {[%emt 0:00:00]} 48. Rb7 {[%emt 0:00:00]} Nc3+ {[%emt 0:00:00]} 49. Kc1 {[%emt 0:00:00]} Nxa2+ {[%emt 0:00:00]} 50. Kd1 {[%emt 0:00:00]} Rf7 {[%emt 0:02:08]} 51. Kc2 {[%emt 0:00:00]} Nb4+ {[%emt 0:01:07]} 52. Kc3 {[%emt 0:00:00]} Nd5+ {[%emt 0:00:05]} 53. Kc4 {[%emt 0:00:00]} Nb6+ {[%emt 0:01:11]} 54. Rxb6 {[%emt 0:00:00]} Rxd7 {[%emt 0:00:04]} 55. Re6 {[%emt 0:00:00]} g5 {[%emt 0:01:09]} 56. b4 {[%emt 0:00:00]} g4 {[%emt 0:00:36]} 57. b5 {[%emt 0:00:00]} g3 {[%emt 0:00:47]} 58. Rxe5 {[%emt 0:00:00]} Kf6 {[%emt 0:00:14]} 59. Re3 {[%emt 0:00:00]} Rg7 {[%emt 0:00:20]} 60. Re1 {[%emt 0:00:00]} h5 {[%emt 0:00:48]} 61. Kd3 {[%emt 0:00:00]} g2 {[%emt 0:01:37]} 62. Rg1 {[%emt 0:00:00]} h4 {[%emt 0:00:03]} 63. b6 {[%emt 0:00:00]} h3 {[%emt 0:00:04]} 0-1

[Event "Groningen Festival 2019-A"]
[Site "Groningen"]
[Date "2019.12.26"]
[Round "5.3"]
[White "Tiviakov, Sergei"]
[Black "Vrolijk, Liam"]
[Result "1/2-1/2"]
[ECO "B70"]
[WhiteElo "2615"]
[BlackElo "2467"]
[Annotator "ChessBase"]
[PlyCount "128"]
[EventDate "2019.12.15"]
[EventType "swiss"]
[EventCountry "NED"]
[SourceTitle "playchess.com"]
[Source "ChessBase"]
[SourceQuality "1"]
[TimeControl "40/5400+30:1800+30"]

1. e4 {[%emt 0:00:00]} c5 {[%emt 0:00:00]} 2. Nc3 {[%emt 0:00:56]} d6 {[%emt 0:00:00]} 3. Nge2 {[%emt 0:00:13]} Nf6 {[%emt 0:00:04]} 4. g3 {[%emt 0:00:49]} Nc6 {[%emt 0:01:09]} 5. Bg2 {[%emt 0:00:08]} g6 {[%emt 0:00:08]} 6. d4 {[%emt 0:00:26]} cxd4 {[%emt 0:00:09]} 7. Nxd4 {[%emt 0:00:05]} Nxd4 {[%emt 0:00:10]} 8. Qxd4 {[%emt 0:00:14]} Bg7 {[%emt 0:00:13]} 9. O-O {[%emt 0:01:38]} O-O {[%emt 0:00:10]} 10. Qc4 {[%emt 0:00:05]} Bd7 {[%emt 0:00:47]} 11. Qb3 {[%emt 0:07:28]} b5 {[%emt 0:08:28]} 12. Nd5 {[%emt 0:01:33]} a5 {[%emt 0:07:34]} 13. a3 {[%emt 0:02:51]} Rb8 {[%emt 0:02:43]} 14. c3 {[%emt 0:03:45]} Be6 {[%emt 0:09:22]} 15. Bg5 {[%emt 0:06:03]} Bxd5 {[%emt 0:02:37]} 16. exd5 {[%emt 0:00:08]} Nd7 {[%emt 0:02:36]} 17. Rfe1 {[%emt 0:04:01]} Bf6 {[%emt 0:02:39]} 18. Bd2 {[%emt 0:02:12]} Qc7 {[%emt 0:02:13]} 19. Re2 {[%emt 0:02:46]} Ne5 {[%emt 0:05:54]} 20. Re4 {[%emt 0:03:10]} Rfc8 {[%emt 0:10:23]} 21. Rd1 {[%emt 0:03:41]} Qb7 {[%emt 0:03:37]} 22. Be1 {[%emt 0:02:29]} Rc4 {[%emt 0:01:42]} 23. Re3 {[%emt 0:06:41]} Qb6 {[%emt 0:01:49]} 24. Bf1 {[%emt 0:13:16]} Rcc8 {[%emt 0:01:22]} 25. Kg2 {[%emt 0:03:17]} Qb7 {[%emt 0:01:51]} 26. Kg1 {[%emt 0:04:21]} Qb6 {[%emt 0:02:43]} 27. Re4 {[%emt 0:07:23]} Rc5 {[%emt 0:06:53]} 28. Bg2 {[%emt 0:05:49]} Rc4 {[%emt 0:00:51]} 29. Qc2 {[%emt 0:00:38]} Qc7 {[%emt 0:01:50]} 30. Qe2 {[%emt 0:00:29]} Rxe4 {[%emt 0:04:16]} 31. Bxe4 {[%emt 0:01:59]} Qc4 {[%emt 0:01:31]} 32. Kf1 {[%emt 0:02:20]} Nd7 {[%emt 0:00:57]} 33. f3 {[%emt 0:06:00]} Nc5 {[%emt 0:03:34]} 34. Bc2 {[%emt 0:00:22]} Nd7 {[%emt 0:02:45]} 35. Kf2 {[%emt 0:04:41]} Qc5+ {[%emt 0:04:40]} 36. Kg2 {[%emt 0:00:15]} Ne5 {[%emt 0:01:11]} 37. Bb3 {[%emt 0:00:54]} Qc7 {[%emt 0:01:31]} 38. Ba2 {[%emt 0:02:08]} Nd7 {[%emt 0:02:43]} 39. Rd3 {[%emt 0:00:43]} Ne5 {[%emt 0:01:02]} 40. Re3 {[%emt 0:01:50]} Nc4 {[%emt 0:03:01]} 41. Re4 {[%emt 0:09:13]} Qb7 {[%emt 0:08:57]} 42. a4 {[%emt 0:03:34]} Ne5 {[%emt 0:05:45]} 43. f4 {[%emt 0:06:19]} Nd7 {[%emt 0:00:55]} 44. axb5 {[%emt 0:04:25]} Qxb5 {[%emt 0:07:45]} 45. Qxb5 {[%emt 0:00:11]} Rxb5 {[%emt 0:00:02]} 46. Re2 {[%emt 0:00:38]} a4 {[%emt 0:03:57]} 47. Rc2 {[%emt 0:03:48]} h5 {[%emt 0:02:41]} 48. Kf3 {[%emt 0:00:27]} Nc5 {[%emt 0:00:35]} 49. Bc4 {[%emt 0:00:28]} Rb7 {[%emt 0:01:40]} 50. Bf2 {[%emt 0:02:35]} Rc7 {[%emt 0:00:26]} 51. Bb5 {[%emt 0:00:26]} Rb7 {[%emt 0:00:32]} 52. Bc4 {[%emt 0:02:24]} Rc7 {[%emt 0:00:09]} 53. Be3 {[%emt 0:00:53]} Kf8 {[%emt 0:02:21]} 54. h3 {[%emt 0:00:16]} Bg7 {[%emt 0:00:29]} 55. g4 {[%emt 0:00:32]} hxg4+ {[%emt 0:00:02]} 56. hxg4 {[%emt 0:00:02]} Rb7 {[%emt 0:00:13]} 57. g5 {[%emt 0:00:34]} Kg8 {[%emt 0:00:11]} 58. Ke2 {[%emt 0:00:41]} Rc7 {[%emt 0:00:25]} 59. Kf3 {[%emt 0:02:14]} Rb7 {[%emt 0:00:40]} 60. Bc1 {[%emt 0:00:40]} Rc7 {[%emt 0:00:59]} 61. Bd2 {[%emt 0:00:43]} Rb7 {[%emt 0:00:23]} 62. Be3 {[%emt 0:00:18]} Rc7 {[%emt 0:00:06]} 63. Bb5 {[%emt 0:01:03]} Rb7 {[%emt 0:00:10]} 64. Bc4 {[%emt 0:00:36]} Rc7 {[%emt 0:00:07]} 1/2-1/2

[Event "Groningen Festival 2019-A"]
[Site "Groningen"]
[Date "2019.12.26"]
[Round "5.4"]
[White "Ulybin, Mikhail"]
[Black "Sargsyan, Shant"]
[Result "1-0"]
[ECO "D85"]
[WhiteElo "2453"]
[BlackElo "2601"]
[Annotator "ChessBase"]
[PlyCount "123"]
[EventDate "2019.12.15"]
[EventType "swiss"]
[EventCountry "NED"]
[SourceTitle "playchess.com"]
[Source "ChessBase"]
[SourceQuality "1"]
[TimeControl "40/5400+30:1800+30"]

1. d4 {[%emt 0:01:49]} Nf6 {[%emt 0:03:30]} 2. c4 {[%emt 0:00:50]} g6 {[%emt 0:00:30]} 3. Nc3 {[%emt 0:01:11]} d5 {[%emt 0:02:40]} 4. cxd5 {[%emt 0:02:07]} Nxd5 {[%emt 0:00:09]} 5. e4 {[%emt 0:01:11]} Nxc3 {[%emt 0:00:16]} 6. bxc3 {[%emt 0:00:14]} Bg7 {[%emt 0:00:19]} 7. Bg5 {[%emt 0:02:11]} c5 {[%emt 0:01:56]} 8. Rc1 {[%emt 0:01:30]} cxd4 {[%emt 0:03:04]} 9. cxd4 {[%emt 0:00:26]} O-O {[%emt 0:00:19]} 10. d5 {[%emt 0:17:19]} h6 {[%emt 0:06:35]} 11. Be3 {[%emt 0:02:29]} f5 {[%emt 0:02:15]} 12. exf5 {[%emt 0:20:07]} Bxf5 {[%emt 0:00:36]} 13. Bc4 {[%emt 0:02:48]} Kh7 {[%emt 0:07:25]} 14. g4 {[%emt 0:08:09]} Bd7 {[%emt 0:07:09]} 15. Nf3 {[%emt 0:11:06]} Bb5 {[%emt 0:09:12]} 16. O-O {[%emt 0:08:31]} Bxc4 {[%emt 0:03:46]} 17. Rxc4 {[%emt 0:00:26]} Na6 {[%emt 0:03:47]} 18. g5 {[%emt 0:10:39]} h5 {[%emt 0:03:36]} 19. Nh4 {[%emt 0:01:05]} Rc8 {[%emt 0:06:33]} 20. Nxg6 {[%emt 0:03:05]} Rxc4 {[%emt 0:09:26]} 21. Nxf8+ {[%emt 0:00:38]} Kg8 {[%emt 0:00:01]} 22. Ne6 {[%emt 0:00:28]} Qe8 {[%emt 0:01:20]} 23. Qb1 {[%emt 0:02:11]} Nb4 {[%emt 0:01:33]} 24. Rd1 {[%emt 0:00:44]} Qa4 {[%emt 0:04:44]} 25. h3 {[%emt 0:00:29]} Nc2 {[%emt 0:01:39]} 26. Rd3 {[%emt 0:00:29]} b6 {[%emt 0:05:18]} 27. Bd2 {[%emt 0:00:32]} Be5 {[%emt 0:06:18]} 28. Qb3 {[%emt 0:00:21]} Nd4 {[%emt 0:03:07]} 29. Nxd4 {[%emt 0:00:40]} Bxd4 {[%emt 0:00:10]} 30. Kg2 {[%emt 0:00:36]} Bc5 {[%emt 0:00:41]} 31. Bc3 {[%emt 0:00:32]} Bd6 {[%emt 0:02:18]} 32. Qb1 {[%emt 0:00:30]} Rf4 {[%emt 0:04:33]} 33. Re3 {[%emt 0:00:28]} Qe8 {[%emt 0:00:23]} 34. Re6 {[%emt 0:00:23]} Qf7 {[%emt 0:00:34]} 35. Qc2 {[%emt 0:00:37]} Bc5 {[%emt 0:00:50]} 36. Be1 {[%emt 0:00:31]} h4 {[%emt 0:00:37]} 37. Qe2 {[%emt 0:00:31]} Rf5 {[%emt 0:00:43]} 38. Re5 {[%emt 0:00:24]} Rf4 {[%emt 0:00:30]} 39. f3 {[%emt 0:00:33]} Bd6 {[%emt 0:00:20]} 40. Bc3 {[%emt 0:00:23]} Qg7 {[%emt 0:00:45]} 41. Rf5 {[%emt 0:13:46]} Qg6 {[%emt 0:07:25]} 42. Rxf4 {[%emt 0:02:25]} Bxf4 {[%emt 0:00:01]} 43. Qe6+ {[%emt 0:04:10]} Qxe6 {[%emt 0:00:44]} 44. dxe6 {[%emt 0:00:11]} Bxg5 {[%emt 0:01:57]} 45. Bb4 {[%emt 0:07:43]} Kf8 {[%emt 0:02:07]} 46. Kf2 {[%emt 0:01:42]} a5 {[%emt 0:14:20]} 47. Bc3 {[%emt 0:00:59]} Bf6 {[%emt 0:00:21]} 48. Bd2 {[%emt 0:00:44]} Kg7 {[%emt 0:01:57]} 49. Ke3 {[%emt 0:00:53]} Bb2 {[%emt 0:00:33]} 50. Ke4 {[%emt 0:00:48]} Kf6 {[%emt 0:00:22]} 51. Kd5 {[%emt 0:00:14]} Kf5 {[%emt 0:00:52]} 52. a4 {[%emt 0:00:56]} Be5 {[%emt 0:03:00]} 53. Be3 {[%emt 0:00:44]} b5 {[%emt 0:02:01]} 54. axb5 {[%emt 0:00:17]} a4 {[%emt 0:00:43]} 55. Bc5 {[%emt 0:00:40]} Kf6 {[%emt 0:00:50]} 56. b6 {[%emt 0:00:46]} Bb8 {[%emt 0:00:37]} 57. b7 {[%emt 0:00:23]} Bf4 {[%emt 0:00:40]} 58. Ba7 {[%emt 0:01:16]} a3 {[%emt 0:00:14]} 59. b8=Q {[%emt 0:00:14]} Bxb8 {[%emt 0:00:07]} 60. Bxb8 {[%emt 0:00:09]} a2 {[%emt 0:00:07]} 61. Be5+ {[%emt 0:00:22]} Kf5 {[%emt 0:00:09]} 62. f4 {[%emt 0:00:27]} 1-0